bitfinex/quotes_ETHUSD_20250130
["timestamp","ask_amount","ask_price","bid_price","bid_amount"]
[1738230027632,3.10549,3220.1,3220.0,0.1]
[1738230027950,3.10549,3220.1,3220.0,0.25]
[1738230035541,3.10568,3219.9,3219.8,0.25]
[1738230035742,4.844155,3219.9,3219.8,0.25]
[1738230036752,3.10587,3219.7,3219.6,0.1]
[1738230041351,3.10587,3219.7,3219.6,0.8854]
[1738230041520,3.10587,3219.7,3219.6,0.93902509]
[1738230043036,3.10587,3219.7,3219.6,0.15362509]
[1738230043234,4.120213,3219.7,3219.6,0.1]
[1738230044536,3.10597,3219.6,3219.5,0.15]
[1738230044916,3.10597,3219.6,3219.4,0.1]
[1738230045156,3.10607,3219.5,3219.4,0.1]
[1738230045928,3.10555,3220.1,3220.0,0.15]
[1738230046146,3.10509,3220.6,3220.5,0.1]
[1738230046355,3.90075,3221.2,3220.5,1.0565]
[1738230046523,3.10501,3220.6,3220.5,1.0565]
[1738230048939,3.10499,3220.7,3220.5,1.0565]
[1738230049150,3.10501,3220.6,3220.5,1.0565]
[1738230049555,3.10501,3220.6,3220.5,0.25]
[1738230049754,3.72601,3220.6,3220.5,0.25]
[1738230050122,6.72601,3220.6,3220.5,0.25]
[1738230050534,6.10501,3220.6,3220.5,0.25]
[1738230050736,3.0,3220.6,3220.5,0.25]
[1738230050959,3.10496,3220.7,3220.5,0.25]
[1738230051872,3.0,3220.8,3220.7,0.25]
[1738230052170,3.0,3220.8,3220.7,1.0434]
[1738230052540,3.10375,3221.9,3221.8,0.25]
[1738230052687,3.10375,3221.9,3221.8,1.0224]
[1738230053047,3.10375,3221.9,3221.8,0.25]
[1738230053250,4.09815129,3221.9,3221.8,0.25]
[1738230053648,4.88715129,3221.9,3221.8,0.25]
[1738230053851,4.09815129,3221.9,3221.8,0.25]
[1738230054485,4.09815129,3221.9,3221.8,0.30313364]
[1738230054891,7.09815129,3221.9,3221.8,0.30313364]
[1738230055048,7.64815129,3221.9,3221.8,0.15]
[1738230055246,7.64815129,3221.9,3221.8,0.25]
[1738230055650,7.09815129,3221.9,3221.8,0.25]
[1738230057299,3.10366,3222.0,3221.8,1.0016]
[1738230057764,6.10366,3222.0,3221.9,0.05236352]
[1738230058671,7.48116,3222.0,3221.9,0.05236352]
[1738230058980,3.10395,3221.7,3221.6,0.15]
[1738230059180,4.92973,3221.7,3221.6,0.15]
[1738230059371,4.92973,3221.7,3221.6,0.25]
[1738230059893,3.10395,3221.7,3221.6,0.25]
[1738230060608,6.10395,3221.7,3221.6,0.30237888]
[1738230061922,6.10395,3221.7,3221.6,0.25]
[1738230062270,6.65395,3221.7,3221.6,0.25]
[1738230063306,6.10395,3221.7,3221.6,0.25]
[1738230063934,6.10395,3221.7,3221.6,0.30237888]
[1738230064270,6.10395,3221.7,3221.6,0.25]
[1738230064901,6.10395,3221.7,3221.6,0.30237888]
[1738230065422,7.02473,3221.7,3221.6,0.30237888]
[1738230065709,7.02473,3221.7,3221.6,0.25]
[1738230065870,7.57473,3221.7,3221.6,0.1]
[1738230066070,8.35083,3221.7,3221.6,0.1]
[1738230066588,6.65433,3221.3,3221.2,0.25]
[1738230067566,7.44379094,3221.3,3221.2,0.25]
[1738230068209,6.65433,3221.3,3221.2,0.25]
[1738230069822,6.65433,3221.3,3221.2,0.15]
[1738230070111,6.65433,3221.3,3221.2,0.25]
[1738230070314,6.65433,3221.3,3221.2,0.15]
[1738230070516,7.44483,3221.3,3221.2,0.15]
[1738230070675,8.810159,3221.3,3221.2,0.15]
[1738230070876,3.10452,3221.1,3221.0,0.25]
[1738230071212,6.65452,3221.1,3221.0,0.25]
[1738230071411,6.65452,3221.1,3221.0,0.15]
[1738230072424,3.10481,3220.8,3220.7,0.25]
[1738230072576,3.34491194,3220.8,3220.6,0.1]
[1738230072775,6.10491,3220.7,3220.6,0.25]
[1738230073218,6.65491,3220.7,3220.6,0.25]
[1738230073920,6.65491,3220.7,3220.6,0.1]
[1738230074119,8.020239,3220.7,3220.6,0.1]
[1738230074492,6.10539,3220.2,3220.1,0.15]
[1738230074705,6.10549,3220.1,3220.0,0.1]
[1738230074874,6.10549,3220.1,3220.0,0.25]
[1738230075807,6.10549,3220.1,3220.0,0.1]
[1738230076010,3.10568,3219.9,3219.8,0.25]
[1738230078931,3.10568,3219.9,3219.6,0.25]
[1738230078932,3.10587,3219.7,3219.6,0.25]
[1738230079247,6.10587,3219.7,3219.6,0.25]
[1738230080439,6.10587,3219.7,3219.6,0.30194489]
[1738230081409,3.10587,3219.7,3219.6,0.20194489]
[1738230081604,5.141903,3219.7,3219.6,0.05194489]
[1738230081805,6.10597,3219.6,3219.5,0.1]
[1738230083418,6.10597,3219.6,3219.5,0.15201823]
[1738230083822,6.10597,3219.6,3219.5,0.1]
[1738230084017,6.10597,3219.6,3219.5,0.15201823]
[1738230084647,6.10597,3219.6,3219.5,0.97211823]
[1738230084848,3.10568,3220.0,3219.9,0.25]
[1738230085149,3.10568,3220.0,3219.9,0.30199772]
[1738230085803,6.10568,3220.0,3219.9,0.25]
[1738230086208,6.10568,3220.0,3219.9,0.30199772]
[1738230086754,6.21016,3220.6,3220.5,0.15]
[1738230086961,3.10506,3220.6,3220.5,0.15]
[1738230087117,3.10506,3220.6,3220.5,0.2018116]
[1738230087313,3.10506,3220.6,3220.5,0.25]
[1738230087750,6.10506,3220.6,3220.5,0.3018116]
[1738230087915,6.10506,3220.6,3220.5,0.27955669]
[1738230088111,6.10506,3220.6,3220.5,0.22774509]
[1738230089048,6.10506,3220.6,3220.5,0.27955669]
[1738230091056,6.10506,3220.6,3220.5,0.22774509]
[1738230091629,6.10506,3220.6,3220.5,0.27955669]
[1738230092551,6.10506,3220.6,3220.5,0.22774509]
[1738230095657,6.10506,3220.6,3220.5,0.27931425]
[1738230099157,6.10506,3220.6,3220.5,0.22774509]
[1738230099357,7.39948345,3220.6,3220.5,0.22774509]
[1738230100104,7.39948345,3220.6,3220.5,0.27931425]
[1738230100599,6.10506,3220.6,3220.5,0.27931425]
[1738230102481,0.8319,3221.3,3221.0,0.22774509]
[1738230102686,3.72627191,3221.5,3221.4,0.1]
[1738230102884,4.4093031,3221.5,3221.4,0.15129195]
[1738230103087,7.4093031,3221.5,3221.4,0.1]
[1738230104096,6.78717119,3221.5,3221.4,0.1]
[1738230104314,6.10414,3221.5,3221.4,0.1]
[1738230104819,6.10414,3221.5,3221.4,0.15125029]
[1738230105594,3.10401,3221.7,3221.6,0.22774509]
[1738230105914,3.10401,3221.7,3221.6,0.27898514]
[1738230107073,6.724801,3221.7,3221.6,0.27898514]
[1738230107776,6.724801,3221.7,3221.6,0.22774509]
[1738230107977,6.724801,3221.7,3221.6,0.27727928]
[1738230108416,3.724801,3221.7,3221.6,0.27727928]
[1738230108579,3.10401,3221.7,3221.6,0.27727928]
[1738230111924,3.10334,3222.4,3222.3,0.1]
[1738230112325,6.72858456,3222.4,3222.3,0.1]
[1738230112884,6.10337,3222.3,3222.2,0.12774509]
[1738230113649,6.10337,3222.3,3222.2,0.17656702]
[1738230114543,7.16719546,3222.3,3222.2,0.17656702]
[1738230115120,7.16719546,3222.3,3222.2,0.12774509]
[1738230117657,7.16719546,3222.3,3222.2,0.17656702]
[1738230117849,7.16719546,3222.3,3222.2,0.12774509]
[1738230121454,6.10443,3221.2,3221.1,0.22774509]
[1738230121820,6.10443,3221.2,3221.1,0.1]
[1738230122018,6.10462,3221.0,3220.8,0.1]
[1738230122218,6.10491,3220.7,3220.6,0.1]
[1738230122440,3.1052,3220.4,3220.3,0.22774509]
[1738230122619,6.1052,3220.4,3220.3,0.22774509]
[1738230123156,6.1052,3220.4,3220.3,0.1]
[1738230123504,3.92389,3220.2,3220.1,0.22774509]
[1738230123699,7.926799,3220.2,3220.1,0.22774509]
[1738230124354,7.926799,3220.2,3220.1,0.1]
[1738230124504,6.10559,3220.0,3219.9,0.1]
[1738230125104,6.10559,3220.0,3219.9,0.22774509]
[1738230127323,6.81292194,3220.0,3219.9,0.1]
[1738230127519,6.81292194,3220.0,3219.9,0.22774509]
[1738230128748,7.42870523,3220.0,3219.9,0.22774509]
[1738230132677,6.10578,3219.8,3219.4,0.22774509]
[1738230132882,3.10607,3219.5,3219.4,0.12774509]
[1738230133066,6.10607,3219.5,3219.4,0.12774509]
[1738230134488,3.10625,3219.4,3219.3,0.12774509]
[1738230135370,3.10625,3219.4,3219.3,0.22774509]
[1738230135684,3.10598,3219.6,3219.5,0.22774509]
[1738230136050,6.10598,3219.6,3219.5,0.22774509]
[1738230136249,6.10598,3219.6,3219.5,0.27193236]
[1738230136446,7.801758,3219.6,3219.5,0.14418727]
[1738230136691,7.801758,3219.6,3219.3,0.12774509]
[1738230136692,6.10616,3219.4,3219.3,0.22774509]
[1738230136987,3.10684,3218.7,3218.6,0.22774509]
[1738230137150,6.10684,3218.7,3218.6,0.22774509]
[1738230137946,3.10684,3218.7,3218.6,0.27197853]
[1738230138641,3.10684,3218.7,3218.6,0.22774509]
[1738230139483,3.89590294,3218.7,3218.6,0.22774509]
[1738230142496,3.89590294,3218.7,3218.4,0.22774509]
[1738230142648,6.10703,3218.5,3218.4,0.22774509]
[1738230144489,6.10703,3218.5,3218.4,0.27232486]
[1738230144697,6.10703,3218.5,3218.4,0.22774509]
[1738230147600,6.10703,3218.5,3218.4,0.98004509]
[1738230148112,6.10703,3218.5,3218.4,0.27232486]
[1738230148113,6.92523,3218.5,3218.4,0.27232486]
[1738230148317,6.10703,3218.5,3218.4,0.22774509]
[1738230151012,6.10703,3218.5,3218.4,0.27232486]
[1738230152317,6.10703,3218.5,3218.4,0.22774509]
[1738230156288,6.10703,3218.5,3218.0,0.2504]
[1738230156289,3.10723,3218.3,3218.2,0.1]
[1738230156489,6.10723,3218.3,3218.2,0.1]
[1738230157603,3.10732,3218.2,3218.1,0.12774509]
[1738230157910,6.10742,3218.1,3218.0,0.3504]
[1738230160837,6.10742,3218.1,3218.0,0.2504]
[1738230161043,8.61617172,3218.1,3218.0,0.2504]
[1738230161533,8.61617172,3218.1,3218.0,0.37814509]
[1738230161735,8.61617172,3218.1,3218.0,0.2504]
[1738230162054,7.83867172,3218.1,3218.0,0.47814509]
[1738230162264,6.10742,3218.1,3218.0,0.47814509]
[1738230162853,6.10742,3218.1,3218.0,0.51781498]
[1738230163647,6.10742,3218.1,3218.0,0.47814509]
[1738230164024,6.10742,3218.1,3218.0,0.51781498]
[1738230164353,3.10742,3218.1,3218.0,0.51781498]
[1738230165160,3.10742,3218.1,3218.0,0.80598712]
[1738230165308,3.728894,3218.1,3218.0,0.80598712]
[1738230165526,3.10742,3218.1,3218.0,0.76631723]
[1738230166248,3.10742,3218.1,3218.0,0.80598712]
[1738230167321,6.73136927,3218.5,3218.4,0.1]
[1738230169435,6.10713,3218.4,3218.3,0.12774509]
[1738230169676,3.10742,3218.1,3218.0,0.47814509]
[1738230169827,6.10742,3218.1,3218.0,0.3504]
[1738230170024,6.89242,3218.1,3218.0,0.3504]
[1738230171970,6.89242,3218.1,3218.0,0.47814509]
[1738230172121,3.785,3218.1,3218.0,0.47814509]
[1738230173818,3.0,3218.1,3218.0,0.47814509]
[1738230175781,0.98384993,3218.4,3218.3,0.22774509]
[1738230176072,0.62433927,3218.5,3218.3,0.22774509]
[1738230176238,3.62433927,3218.5,3218.3,0.22774509]
[1738230177158,0.62433927,3218.5,3218.3,0.22774509]
[1738230178664,3.0,3218.6,3218.3,0.22774509]
[1738230179142,3.0,3218.8,3218.3,0.22774509]
[1738230179338,4.004126,3218.8,3218.3,0.22774509]
[1738230179663,0.61253113,3218.6,3218.3,0.22774509]
[1738230180243,0.61253113,3218.6,3218.5,0.1]
[1738230181545,3.61253113,3218.6,3218.5,0.1]
[1738230181728,0.61253113,3218.6,3218.5,0.1]
[1738230181923,1.07419684,3218.6,3218.5,0.1]
[1738230182270,3.93223,3218.4,3218.3,0.22774509]
[1738230183230,3.93223,3218.4,3218.3,0.1]
[1738230183442,3.10724,3218.3,3218.1,0.22774509]
[1738230183643,3.10732,3218.2,3218.1,0.1]
[1738230183967,3.811286,3218.2,3218.1,0.1]
[1738230184967,3.811286,3218.2,3218.0,0.2504]
[1738230185527,4.45032,3218.1,3218.0,0.2504]
[1738230187175,7.45032,3218.1,3218.0,0.2504]
[1738230188680,8.05685739,3218.1,3218.0,0.2504]
[1738230188837,8.60146662,3218.1,3218.0,0.2504]
[1738230189580,8.61646662,3218.1,3218.0,0.2504]
[1738230190049,5.49404662,3218.1,3217.4,0.12774509]
[1738230190261,1.3219,3218.0,3217.4,0.12774509]
[1738230190583,0.55,3217.5,3217.4,0.12774509]
[1738230190786,0.915799,3217.5,3217.4,0.12774509]
[1738230191534,1.674799,3217.5,3217.2,0.12774509]
[1738230191752,3.10818,3217.4,3217.1,0.1]
[1738230191954,3.65818,3217.4,3217.3,0.03837757]
[1738230192201,3.65818,3217.4,3216.9,0.22774509]
[1738230192202,3.1083,3217.2,3216.9,0.22774509]
[1738230192356,0.61083,3217.1,3216.9,0.22774509]
[1738230192755,3.61083,3217.1,3216.9,0.22774509]
[1738230193295,0.61083,3217.1,3217.0,0.794]
[1738230193602,0.915799,3217.5,3217.0,0.794]
[1738230193603,0.55,3217.4,3217.0,0.794]
[1738230193782,3.10775,3217.8,3217.4,0.1]
[1738230194099,3.55,3217.7,3217.4,0.1]
[1738230194315,0.55,3217.7,3217.4,0.1]
[1738230194521,0.7581,3217.9,3217.8,0.1]
[1738230195072,0.61838032,3217.9,3217.8,0.1]
[1738230195405,0.61838032,3217.9,3217.1,0.1]
[1738230195406,6.108,3217.5,3217.1,0.1]
[1738230195591,0.55,3217.6,3217.3,0.1]
[1738230196512,3.7721,3217.7,3217.3,0.1]
[1738230196513,3.0,3217.7,3217.6,0.1]
[1738230196711,3.67260803,3217.7,3217.6,0.1]
[1738230197310,0.67260803,3217.7,3217.6,0.1]
[1738230197512,0.61838032,3217.9,3217.6,0.1]
[1738230198018,3.72605032,3217.9,3217.6,0.1]
[1738230198518,0.55,3217.8,3217.4,0.1]
[1738230198712,3.0,3217.5,3217.4,0.1]
[1738230199330,3.108,3217.5,3217.4,0.1]
[1738230199536,3.9354,3217.5,3217.4,0.1]
[1738230200588,3.0,3217.3,3217.2,0.1]
[1738230201197,3.10819,3217.3,3217.1,0.22774509]
[1738230201403,3.0,3217.4,3217.3,0.22774509]
[1738230204763,3.61013195,3217.4,3217.3,0.22774509]
[1738230206154,3.61013195,3217.4,3217.3,0.1]
[1738230206356,4.31605289,3217.4,3217.3,0.1]
[1738230206551,7.97414289,3217.4,3217.3,0.1]
[1738230206758,3.10829,3217.2,3217.1,0.1]
[1738230207054,6.10829,3217.2,3217.1,0.1]
[1738230208368,3.65848,3217.0,3216.9,0.1]
[1738230208571,4.00432,3217.0,3216.9,0.1]
[1738230208739,0.61013195,3217.4,3216.9,0.8719]
[1738230208945,0.61013195,3217.4,3217.3,0.1]
[1738230209344,0.61013195,3217.4,3217.3,0.3496]
[1738230210137,6.71822195,3217.4,3217.3,0.3496]
[1738230210335,7.39004415,3217.4,3217.3,0.3496]
[1738230211473,4.28195415,3217.4,3217.3,0.3496]
[1738230212472,7.94004415,3217.4,3217.3,0.2496]
[1738230212660,6.10829,3217.2,3217.1,0.1]
[1738230212863,7.14670874,3217.2,3217.1,0.1]
[1738230213243,3.10848,3217.0,3216.9,0.22774509]
[1738230213632,3.10848,3217.0,3216.9,0.1]
[1738230213633,6.10848,3217.0,3216.9,0.1]
[1738230214536,6.65848,3217.0,3216.9,0.1]
[1738230215375,3.10867,3216.8,3216.7,0.1]
[1738230215535,6.10867,3216.8,3216.7,0.1]
[1738230215735,6.7804922,3216.8,3216.7,0.22774509]
[1738230216237,3.0,3216.8,3216.7,0.22774509]
[1738230218135,3.0,3216.8,3216.7,1.06024509]
[1738230218575,3.0,3216.8,3216.7,1.09617574]
[1738230218795,6.65867,3216.8,3216.7,0.26367574]
[1738230218939,3.0,3216.8,3216.7,0.22774509]
[1738230219877,7.269522,3216.8,3216.7,0.1]
[1738230220054,8.051522,3216.8,3216.7,0.1]
[1738230220459,8.051522,3216.8,3216.5,0.22774509]
[1738230220460,3.10887,3216.6,3216.5,0.22774509]
[1738230220654,6.10887,3216.6,3216.5,0.22774509]
[1738230221491,6.65887,3216.6,3216.5,0.22774509]
[1738230221779,6.65887,3216.6,3216.2,0.22774509]
[1738230221780,3.10916,3216.3,3216.2,0.22774509]
[1738230221981,3.10906,3216.5,3216.4,0.22774509]
[1738230222184,6.10906,3216.5,3216.4,0.22774509]
[1738230223041,5.852923,3216.5,3216.4,0.22774509]
[1738230223481,5.852923,3216.5,3216.4,0.1]
[1738230223685,6.463775,3216.5,3216.4,0.1]
[1738230224784,6.463775,3216.5,3216.4,0.22774509]
[1738230225573,3.610852,3216.5,3216.4,0.22774509]
[1738230225747,3.0,3216.5,3216.4,0.22774509]
[1738230227250,3.0,3216.5,3216.4,0.1]
[1738230227251,6.10896,3216.5,3216.4,0.1]
[1738230227543,3.0,3216.5,3216.4,0.22774509]
[1738230228285,6.10896,3216.5,3216.4,0.22774509]
[1738230228786,6.65911,3216.4,3216.2,0.1]
[1738230228988,7.635917,3216.4,3216.3,0.12774509]
[1738230229993,1.526807,3216.4,3216.3,0.12774509]
[1738230230158,0.55,3216.4,3216.3,0.12774509]
[1738230231098,3.10899,3216.5,3216.3,0.12774509]
[1738230231400,3.0,3216.6,3216.5,0.1]
[1738230231597,3.55,3216.6,3216.5,0.1]
[1738230231891,3.55,3216.6,3216.5,0.22774509]
[1738230232471,3.7463247,3216.9,3216.5,0.22774509]
[1738230232472,3.7463247,3216.9,3216.7,0.1]
[1738230232799,3.0,3216.8,3216.7,0.1]
[1738230233603,1.32318817,3216.9,3216.7,0.1]
[1738230233903,6.65867,3216.8,3216.7,0.1]
[1738230235175,6.65867,3216.8,3216.7,0.22774509]
[1738230235176,3.0,3216.8,3216.7,0.22774509]
[1738230237779,3.0,3216.8,3216.7,0.1]
[1738230237995,3.0,3216.8,3216.7,0.22774509]
[1738230238235,3.90322,3217.3,3217.1,0.1]
[1738230238506,0.795,3217.6,3217.3,0.1]
[1738230238703,6.606387,3217.5,3217.4,0.03633851]
[1738230238905,3.65809,3217.4,3217.3,0.1]
[1738230241504,3.10786,3217.7,3217.5,0.22774509]
[1738230241903,6.1079,3217.6,3217.5,0.22774509]
[1738230242212,3.1079,3217.6,3217.5,0.1]
[1738230242510,3.6848723,3217.6,3217.5,0.22774509]
[1738230242682,3.10757,3218.0,3217.8,0.1]
[1738230242882,3.10745,3218.1,3217.8,0.1]
[1738230243577,3.0,3218.0,3217.8,0.1]
[1738230245117,6.10752,3218.0,3217.8,0.1]
[1738230245347,4.09280777,3217.9,3217.8,0.1]
[1738230246314,0.98519777,3217.9,3217.8,0.1]
[1738230247848,4.09280777,3217.9,3217.8,0.1]
[1738230249014,7.90260777,3217.9,3217.8,0.1]
[1738230249305,3.10771,3217.8,3217.7,0.1]
[1738230249532,6.658,3217.5,3217.4,0.22774509]
[1738230249854,6.658,3217.5,3217.4,0.1]
[1738230251237,6.658,3217.5,3217.4,0.22774509]
[1738230254145,3.55,3217.5,3217.4,0.22774509]
[1738230254682,3.0,3217.5,3217.4,1.03714509]
[1738230254814,3.0,3217.5,3217.4,1.07285928]
[1738230255159,0.7932,3218.4,3218.0,0.1]
[1738230255346,3.10703,3218.5,3218.3,0.12774509]
[1738230255527,3.310703,3218.4,3218.3,0.12774509]
[1738230256256,6.417833,3218.4,3218.3,0.12774509]
[1738230256559,0.310703,3218.4,3218.3,0.12774509]
[1738230257166,6.10703,3218.6,3218.5,0.1]
[1738230257167,6.65703,3218.6,3218.5,0.1]
[1738230257467,0.55,3218.6,3218.5,0.1]
[1738230257651,3.0,3218.8,3218.5,0.1]
[1738230257961,0.55,3218.7,3218.6,0.03443039]
[1738230258317,0.55,3218.7,3218.5,0.1]
[1738230258554,0.55,3218.7,3218.6,0.03443039]
[1738230258863,0.55,3218.7,3218.5,0.1]
[1738230259525,0.55,3218.7,3218.5,0.22774509]
[1738230260117,3.0,3218.6,3218.5,0.22774509]
[1738230260318,7.32263,3218.6,3218.5,0.1]
[1738230261062,7.32263,3218.6,3218.5,0.22774509]
[1738230264596,7.32263,3218.6,3218.5,0.22774509]
[1738230265097,0.66569,3218.6,3218.5,0.22774509]
[1738230265296,3.10684,3218.8,3218.5,0.22774509]
[1738230265469,3.65684,3218.8,3218.7,0.1]
[1738230266553,3.62239747,3218.9,3218.7,0.1]
[1738230266790,3.62239747,3218.9,3218.7,0.22774509]
[1738230267097,6.72906747,3218.9,3218.7,0.22774509]
[1738230267314,3.62239747,3218.9,3218.7,0.22774509]
[1738230267607,3.0,3218.9,3218.7,0.22774509]
[1738230267772,3.0,3219.1,3219.0,0.1]
[1738230268097,6.10645,3219.1,3219.0,0.1]
[1738230269396,0.60796019,3219.2,3219.0,0.1]
[1738230269970,3.71432019,3219.2,3219.0,0.1]
[1738230270171,3.0,3219.1,3219.0,0.1]
[1738230273284,6.10645,3219.1,3219.0,0.1]
[1738230273973,7.64065388,3219.1,3219.0,0.1]
[1738230274498,7.09065388,3219.1,3219.0,0.1]
[1738230274705,6.10645,3219.1,3219.0,0.1]
[1738230274869,3.0,3219.1,3219.0,0.1]
[1738230275679,3.0,3219.1,3219.0,0.91323128]
[1738230275882,3.0,3219.6,3219.5,0.1]
[1738230276207,3.0,3219.6,3219.5,0.22774509]
[1738230276208,1.17510297,3219.6,3219.5,0.22774509]
[1738230276372,0.55,3219.6,3219.5,0.22774509]
[1738230276573,3.65597,3219.6,3219.5,0.22774509]
[1738230276799,4.332161,3219.6,3219.5,0.26105073]
[1738230277016,7.332161,3219.6,3219.5,0.22774509]
[1738230277402,7.332161,3219.6,3219.5,0.12774509]
[1738230277720,3.0,3219.4,3219.3,0.1]
[1738230278472,3.0,3219.4,3219.3,0.8863]
[1738230278674,3.0,3219.4,3219.3,0.91940555]
[1738230280484,3.0,3219.4,3219.3,0.13310555]
[1738230280818,3.0,3219.4,3219.3,0.1]
[1738230284144,6.10616,3219.4,3219.3,0.1]
[1738230284309,3.0,3219.4,3219.3,0.1]
[1738230285335,6.10616,3219.4,3219.3,0.1]
[1738230285710,7.027383,3219.4,3219.3,0.1]
[1738230285914,6.10636,3219.2,3219.1,0.1]
[1738230290712,6.71531841,3219.2,3219.1,0.1]
[1738230291649,7.26531841,3219.2,3219.1,0.1]
[1738230291951,8.05433635,3219.2,3219.1,0.1]
[1738230295639,3.55,3219.1,3218.9,0.22774509]
[1738230295834,6.10655,3219.0,3218.9,0.22774509]
[1738230297085,3.0,3219.0,3218.9,0.22774509]
[1738230299670,3.0,3219.0,3218.9,0.67567935]
[1738230300651,3.0,3219.0,3218.9,0.64263591]
[1738230300855,3.0,3219.0,3218.9,0.67567935]
[1738230305467,7.78195,3219.0,3218.9,0.44793426]
[1738230305669,3.10703,3218.6,3218.0,0.1]
[1738230305843,3.65713,3218.4,3218.3,0.12774509]
[1738230306044,6.65713,3218.4,3218.3,0.12774509]
[1738230307144,3.10742,3218.1,3218.0,0.22774509]
[1738230308572,3.65742,3218.1,3218.0,0.22774509]
[1738230311889,4.28038325,3218.1,3218.0,0.22774509]
[1738230313064,3.7989,3218.4,3218.2,0.1]
[1738230313292,7.677758,3218.4,3218.2,0.1]
[1738230313600,3.65723,3218.3,3218.2,0.22774509]
[1738230317170,3.0,3218.3,3218.2,0.22774509]
[1738230317376,3.0,3218.3,3218.2,1.01234509]
[1738230319883,0.55,3218.6,3218.5,0.1]
[1738230320089,0.55,3218.6,3218.5,0.22774509]
[1738230320311,3.55,3218.6,3218.5,0.22774509]
[1738230320511,0.7591,3218.9,3218.2,0.7846]
[1738230320512,1.244095,3218.9,3218.8,0.1]
[1738230320923,3.1056,3220.0,3219.5,0.1]
[1738230320924,6.21166,3219.8,3219.5,0.1]
[1738230321085,6.89039,3219.8,3219.7,0.1]
[1738230321522,8.073499,3219.8,3219.7,0.1]
[1738230321705,8.073499,3219.8,3219.4,0.12774509]
[1738230321706,3.10607,3219.5,3219.4,0.22774509]
[1738230321911,6.10607,3219.5,3219.4,0.22774509]
[1738230322092,7.027272,3219.5,3219.4,0.22774509]
[1738230323694,3.55,3219.4,3219.2,0.22774509]
[1738230323902,8.391572,3219.5,3219.0,0.22774509]
[1738230323903,3.65645,3219.1,3219.0,0.22774509]
[1738230324083,6.65645,3219.1,3219.0,0.22774509]
[1738230324998,6.65645,3219.1,3219.0,0.1]
[1738230325221,6.99755468,3219.1,3219.0,0.22774509]
[1738230325717,6.99755468,3219.1,3219.0,0.1]
[1738230326016,7.40945,3218.9,3218.8,0.1]
[1738230326219,7.40945,3218.9,3218.8,0.22774509]
[1738230326806,7.40945,3218.9,3218.8,0.12774509]
[1738230327022,6.65674,3218.8,3218.7,0.1]
[1738230334537,6.65674,3218.8,3218.7,0.15355015]
[1738230335238,0.62417043,3219.1,3218.7,0.15355015]
[1738230335440,0.8175,3219.9,3219.5,0.22774509]
[1738230335610,3.92638,3219.8,3219.7,0.22774509]
[1738230335805,3.91575,3219.9,3219.7,0.22774509]
[1738230335806,3.10575,3219.9,3219.7,0.22774509]
[1738230336000,6.21151,3219.9,3219.7,0.28138201]
[1738230336434,6.10578,3219.8,3219.7,0.28138201]
[1738230336836,6.85958,3219.8,3219.7,0.22774509]
[1738230337137,6.65578,3219.8,3219.7,0.22774509]
[1738230339809,7.27226072,3219.8,3219.7,0.22774509]
[1738230340923,7.27226072,3219.8,3219.7,0.28138201]
[1738230341118,3.10568,3220.0,3219.9,0.22774509]
[1738230341448,3.85924,3220.2,3220.1,0.1]
[1738230341449,4.349084,3220.2,3220.1,0.1]
[1738230341635,3.10505,3220.6,3220.3,0.12774509]
[1738230341836,3.10539,3220.2,3220.1,0.22774509]
[1738230342146,4.43789,3220.2,3220.1,0.1]
[1738230342710,4.43789,3220.2,3220.1,0.22774509]
[1738230343458,3.65539,3220.2,3220.1,0.22774509]
[1738230344226,3.0,3220.3,3220.1,0.22774509]
[1738230344535,6.10535,3220.3,3220.2,0.05197898]
[1738230345144,6.65535,3220.3,3220.2,0.05197898]
[1738230345335,3.65539,3220.2,3220.1,0.22774509]
[1738230346025,4.34844,3220.7,3220.4,0.1]
[1738230346219,3.10499,3220.7,3220.6,0.1]
[1738230346540,6.78861356,3220.7,3220.6,0.1]
[1738230347121,3.6551,3220.5,3220.4,0.1]
[1738230347522,3.78856356,3220.7,3220.6,0.1]
[1738230347739,0.7819,3220.8,3220.7,0.12774509]
[1738230347949,3.10472,3220.9,3220.8,0.1]
[1738230348131,3.65472,3220.9,3220.8,0.1]
[1738230348654,7.26586305,3220.9,3220.8,0.1]
[1738230349260,6.65472,3220.9,3220.8,0.1]
[1738230349425,6.10472,3220.9,3220.8,0.1]
[1738230350930,3.10481,3220.8,3220.7,0.12774509]
[1738230351566,4.48581,3220.7,3220.6,0.1]
[1738230352429,3.6552,3220.4,3220.2,0.12774509]
[1738230352671,3.6553,3220.3,3220.2,0.12774509]
[1738230353024,3.65539,3220.2,3220.1,0.1]
[1738230353228,3.99676268,3220.2,3220.1,0.1]
[1738230354862,3.65539,3220.2,3220.1,0.1]
[1738230355242,3.65539,3220.2,3220.1,0.15139574]
[1738230355438,6.10519,3220.5,3220.4,0.22774509]
[1738230355830,6.65519,3220.5,3220.4,0.22774509]
[1738230356163,3.10501,3220.7,3220.4,0.22774509]
[1738230356367,3.10501,3220.7,3220.2,0.8264]
[1738230356368,3.741046,3221.0,3220.8,0.1]
[1738230356566,3.55,3220.9,3220.8,0.1]
[1738230356732,6.10472,3220.9,3220.8,0.1]
[1738230357277,6.65472,3220.9,3220.8,0.1]
[1738230359258,3.65472,3220.9,3220.8,0.1]
[1738230360173,3.65472,3220.9,3220.6,0.1]
[1738230360174,4.45531,3220.8,3220.6,0.1]
[1738230360382,3.65491,3220.7,3220.6,0.1]